bitfinex/quotes_ETHUSD_20240927
["timestamp","ask_amount","ask_price","bid_price","bid_amount"]
[1727476112865,0.7973,2708.5,2708.2,1.54452953]
[1727476113030,4.48946,2708.5,2708.2,1.54452953]
[1727476113228,0.7973,2708.5,2708.3,0.06139509]
[1727476113468,0.7973,2708.5,2708.2,1.54452953]
[1727476114161,0.7973,2708.5,2708.3,0.06139509]
[1727476114397,5.307586,2708.5,2708.3,0.06139509]
[1727476114546,4.48947,2708.5,2708.3,0.06139509]
[1727476114750,3.6923,2708.4,2707.8,3.69298]
[1727476115153,3.6923,2708.4,2707.9,0.06158052]
[1727476115356,4.54911863,2708.4,2707.9,0.06158052]
[1727476116056,3.6924,2708.3,2707.9,0.06158052]
[1727476116257,3.6924,2708.3,2707.7,4.46673]
[1727476116461,3.6924,2708.3,2707.8,0.06166967]
[1727476118060,3.6924,2708.3,2707.6,3.69324]
[1727476118268,3.69252,2708.2,2707.6,3.69324]
[1727476118490,3.69252,2708.2,2707.7,0.06182821]
[1727476118781,3.6924,2708.3,2707.7,0.06182821]
[1727476119443,3.6924,2708.3,2707.7,3.75496821]
[1727476119642,4.22705186,2708.3,2707.7,3.75496821]
[1727476120270,7.91952186,2708.3,2707.7,3.75496821]
[1727476120578,3.6925,2708.2,2707.7,3.75496821]
[1727476120881,4.22705186,2708.3,2707.7,3.75496821]
[1727476121041,3.69264,2708.1,2707.7,0.06182821]
[1727476121384,3.69264,2708.1,2707.6,3.69326]
[1727476121542,3.69264,2708.1,2707.8,0.06173904]
[1727476121887,3.6924,2708.3,2707.9,0.06164989]
[1727476122174,0.7973,2708.5,2707.9,0.06164989]
[1727476122175,7.48948,2708.5,2707.9,0.06164989]
[1727476122380,8.907631,2708.5,2707.9,4.52801989]
[1727476122584,3.7973,2708.5,2708.1,3.6926]
[1727476122752,0.7973,2708.5,2708.1,3.6926]
[1727476122947,4.48938,2708.5,2708.2,0.0611697]
[1727476123451,4.48938,2708.5,2707.9,8.15918]
[1727476123671,3.69182,2708.7,2708.2,3.69243]
[1727476123915,3.69182,2708.7,2708.3,0.7736]
[1727476124192,3.69182,2708.7,2708.3,0.83468057]
[1727476125885,3.69182,2708.7,2708.3,0.06108057]
[1727476126385,3.69182,2708.7,2708.2,3.69243]
[1727476126581,7.38375,2708.7,2708.4,0.06099144]
[1727476126880,7.38372,2708.7,2708.5,0.06090233]
[1727476127087,3.69182,2708.7,2708.1,4.48668]
[1727476127285,3.69182,2708.7,2708.6,0.06081322]
[1727476127499,4.430162,2708.7,2708.1,4.48668]
[1727476127649,3.69182,2708.7,2708.6,0.06081322]
[1727476127846,3.69182,2708.7,2708.2,3.69247]
[1727476128262,3.69182,2708.7,2708.3,0.06108057]
[1727476128503,3.69182,2708.7,2708.2,3.69247]
[1727476128693,0.7795,2708.6,2708.4,0.06099144]
[1727476128993,4.47144,2708.6,2708.3,0.06108057]
[1727476129291,4.47144,2708.6,2708.4,0.06099144]
[1727476129456,4.47144,2708.6,2708.1,4.48665]
[1727476129821,4.47144,2708.6,2708.2,0.0611697]
[1727476129993,0.7795,2708.6,2708.2,0.0611697]
[1727476130875,3.69182,2708.7,2708.2,0.0611697]
[1727476131388,3.69182,2708.7,2708.2,3.7536397]
[1727476131972,3.69148,2709.0,2708.4,3.69212]
[1727476132273,3.69148,2709.0,2708.5,0.85487746]
[1727476133095,3.69155,2708.9,2708.5,0.85487746]
[1727476133477,7.38317,2708.9,2708.5,0.85487746]
[1727476133675,3.69141,2709.0,2708.5,4.54694746]
[1727476133889,3.69157,2708.9,2708.5,0.85487746]
[1727476134813,7.38321,2708.9,2708.5,0.85487746]
[1727476134989,3.69157,2708.9,2708.5,0.85487746]
[1727476135500,3.69149,2709.0,2708.5,4.43584723]
[1727476135698,3.69175,2708.8,2708.5,0.85487746]
[1727476137113,3.69184,2708.7,2708.5,0.06077746]
[1727476137320,4.47144,2708.6,2708.5,0.06077746]
[1727476137522,3.69209,2708.5,2708.0,4.48684]
[1727476137682,3.69221,2708.4,2708.0,0.7941]
[1727476138015,3.69209,2708.5,2708.0,0.7941]
[1727476138316,3.69224,2708.4,2708.0,0.7941]
[1727476138676,3.69224,2708.4,2707.8,14.73586]
[1727476138677,0.7795,2708.6,2707.8,0.7941]
[1727476138882,3.69244,2708.3,2707.8,0.7941]
[1727476139108,3.69249,2708.2,2707.8,0.7941]
[1727476139913,7.38487,2708.3,2707.8,0.7941]
[1727476140220,3.69243,2708.3,2707.8,0.7941]
[1727476141593,3.69243,2708.3,2707.8,4.48713]
[1727476142098,7.38487,2708.3,2707.8,0.7941]
[1727476142300,3.69243,2708.3,2707.8,0.7941]
[1727476142926,3.69243,2708.3,2707.8,0.86795169]
[1727476143086,3.69243,2708.3,2707.8,4.48709]
[1727476143798,3.69243,2708.3,2707.8,4.56094167]
[1727476144390,3.69243,2708.3,2707.8,4.48709]
[1727476145622,3.69243,2708.3,2707.8,0.7941]
[1727476146889,3.69223,2708.4,2707.9,3.75216986]
[1727476147937,3.69223,2708.4,2708.0,0.05755805]
[1727476148489,4.84918264,2708.4,2708.0,0.05755805]
[1727476148691,3.69223,2708.4,2708.0,0.05755805]
[1727476150036,4.84918264,2708.4,2708.0,0.05755805]
[1727476152224,1.15695264,2708.3,2708.0,0.05755805]
[1727476152646,4.84932264,2708.3,2707.8,4.48707]
[1727476152847,1.15695264,2708.3,2707.9,0.0576472]
[1727476154356,1.15695264,2708.1,2707.9,0.0576472]
[1727476154715,1.15695264,2708.0,2707.9,0.0576472]
[1727476155232,1.15695264,2708.1,2707.9,0.0576472]
[1727476155452,1.15695264,2708.0,2707.9,0.0576472]
[1727476156414,1.55436831,2708.0,2707.9,0.0576472]
[1727476157149,1.55436831,2708.1,2707.9,0.0576472]
[1727476157354,1.55436831,2708.0,2707.9,0.0576472]
[1727476162389,1.90364806,2708.0,2707.9,0.0576472]
[1727476162554,1.90364806,2708.0,2706.8,4.18191873]
[1727476162555,12.94387739,2708.0,2706.9,3.69423]
[1727476162763,1.1631991,2707.1,2706.7,0.8238]
[1727476163068,1.1631991,2707.0,2706.7,2.47643216]
[1727476163270,1.1631991,2707.1,2706.7,6.17091216]
[1727476164149,1.1631991,2707.2,2706.7,6.17091216]
[1727476164348,1.1631991,2707.1,2706.7,6.17091216]
[1727476164584,1.1631991,2707.0,2706.7,2.47643216]
[1727476165244,1.1631991,2707.1,2706.7,2.47643216]
[1727476166252,1.1631991,2707.2,2706.7,0.8238]
[1727476167456,4.8569091,2707.3,2706.7,0.8238]
[1727476167992,4.8569091,2707.3,2706.7,4.51827]
[1727476168375,1.1631991,2707.2,2706.7,4.51827]
[1727476169057,4.8569091,2707.3,2706.7,4.51827]
[1727476170156,3.69371,2707.3,2706.7,4.51827]
[1727476170358,4.8569091,2707.3,2706.8,0.046623]
[1727476170796,4.8569091,2707.3,2706.7,8.21272]
[1727476170955,4.8569091,2707.3,2706.9,0.04653378]
[1727476171157,3.69371,2707.3,2706.8,0.046623]
[1727476171358,3.69371,2707.3,2707.0,0.04644457]
[1727476171663,1.08960412,2707.3,2706.8,3.69432]
[1727476171867,5.6515091,2707.4,2706.9,0.04653378]
[1727476172964,3.69373,2707.3,2706.9,0.04653378]
[1727476173166,0.9453,2707.2,2706.4,3.58366746]
[1727476173366,0.9453,2707.2,2705.7,3.69578]
[1727476173367,1.1631991,2706.5,2705.7,3.69578]
[1727476173578,3.69467,2706.6,2705.9,3.69555]
[1727476173976,3.69467,2706.6,2705.9,7.39109]
[1727476174176,3.69467,2706.6,2705.9,3.69551]
[1727476174408,1.61468335,2706.7,2706.0,0.07390274]
[1727476174580,3.69455,2706.7,2706.1,3.69535]
[1727476174783,3.69455,2706.7,2706.0,0.07390274]
[1727476174994,3.69455,2706.7,2705.9,3.6955]
[1727476175388,3.69455,2706.7,2706.0,3.69547]
[1727476175593,3.69467,2706.6,2706.0,3.69547]
[1727476176415,3.69467,2706.6,2706.1,0.7882]
[1727476177705,3.69483,2706.5,2706.1,0.7882]
[1727476180113,3.69498,2706.4,2706.1,0.7882]
[1727476181015,3.69498,2706.4,2706.2,0.06232693]
[1727476183397,7.38944,2706.6,2706.2,0.06232693]
[1727476183720,3.69481,2706.5,2706.2,0.06232693]
[1727476187292,3.69497,2706.4,2706.2,0.06232693]
[1727476194134,3.69467,2706.6,2706.2,0.06232693]
[1727476194296,3.69481,2706.5,2706.2,0.06232693]
[1727476197414,3.69498,2706.4,2706.2,0.06232693]
[1727476201308,0.369467,2706.5,2706.2,0.06232693]
[1727476201528,3.69487,2706.5,2706.2,0.06232693]
[1727476202349,3.69485,2706.5,2706.2,0.06232693]
[1727476208150,4.8580491,2706.5,2706.2,0.06232693]
[1727476208924,1.1631991,2706.5,2706.2,0.06232693]
[1727476210075,2.81801029,2706.4,2706.2,0.06232693]
[1727476210361,4.05754103,2706.3,2706.2,0.06232693]
[1727476210562,7.64798071,2706.3,2706.2,0.06232693]
[1727476211050,8.45458071,2706.3,2706.2,0.06232693]
[1727476211247,6.51895222,2706.3,2706.2,0.06232693]
[1727476212259,13.16762727,2706.3,2706.2,0.06232693]
[1727476213213,10.45441519,2706.3,2706.2,0.06232693]
[1727476213715,13.16762727,2706.3,2706.2,0.06232693]
[1727476213941,8.249604,2706.3,2706.2,0.06232693]
[1727476214151,5.249604,2706.3,2706.2,0.06232693]
[1727476214453,7.18909544,2706.3,2706.2,0.06232693]
[1727476215569,4.86414103,2706.3,2706.2,0.06232693]
[1727476216114,7.18909544,2706.3,2706.2,0.06232693]
[1727476216456,4.86414103,2706.3,2706.2,0.06232693]
[1727476217641,3.69533,2706.2,2705.7,0.7691]
[1727476217832,1.1628611,2705.9,2705.7,0.7691]
[1727476218233,1.1628611,2705.8,2705.7,0.7691]
[1727476218762,1.1628611,2705.9,2705.7,0.7691]
[1727476219831,1.1628611,2705.8,2705.7,0.7691]
[1727476220849,1.1628611,2705.9,2705.7,0.7691]
[1727476221958,1.1628611,2705.8,2705.7,0.7691]
[1727476222331,1.1628611,2705.9,2705.7,0.7691]
[1727476224486,1.1628611,2705.8,2705.7,0.7691]
[1727476224828,1.1628611,2705.9,2705.7,0.7691]
[1727476226227,1.1628611,2705.8,2705.7,0.7691]
[1727476226465,1.1628611,2705.9,2705.7,0.7691]
[1727476227873,1.1628611,2705.8,2705.7,0.7691]
[1727476229064,1.1628611,2705.9,2705.7,0.7691]
[1727476229830,1.1628611,2705.8,2705.7,0.7691]
[1727476230739,1.1628611,2705.8,2705.3,5.35112119]
[1727476231033,1.1628611,2705.8,2705.2,3.69648]
[1727476231034,1.1628611,2705.6,2705.2,4.47358]
[1727476231269,4.8587611,2705.7,2705.2,4.47358]
[1727476231450,1.1628611,2705.6,2705.2,4.47358]
[1727476231847,4.8589311,2705.6,2705.2,0.7771]
[1727476232153,3.69619,2705.5,2705.2,0.7771]
[1727476232362,1.1628611,2705.6,2705.3,1.65481119]
[1727476232676,1.1628611,2705.7,2705.3,1.65481119]
[1727476233035,1.1628611,2705.7,2705.3,5.35124119]
[1727476234149,1.1628611,2705.7,2705.3,1.65481119]
[1727476234344,1.1628611,2705.7,2705.4,0.7771]
[1727476234557,1.1628611,2705.8,2705.4,0.7771]
[1727476235104,4.8586511,2705.8,2705.4,0.7771]
[1727476235306,1.1628611,2705.8,2705.4,0.7771]
[1727476235603,1.1128611,2705.8,2705.4,0.7771]
[1727476236305,4.8086311,2705.8,2705.4,0.7771]
[1727476237273,1.1128611,2705.8,2705.5,1.65481119]
[1727476238731,5.24612147,2705.9,2705.5,1.65481119]
[1727476238913,5.24615147,2705.9,2705.5,1.65481119]
[1727476239064,3.69567,2705.9,2705.5,1.65481119]
[1727476239465,5.24600147,2706.0,2705.5,1.65481119]
[1727476240403,3.69564,2705.9,2705.5,1.65481119]
[1727476242405,5.24612147,2705.9,2705.5,1.65481119]
[1727476242809,3.69576,2705.8,2705.5,1.65481119]
[1727476242998,3.69576,2705.8,2705.4,0.7771]
[1727476244407,5.24610147,2705.9,2705.4,4.4734]
[1727476244618,1.16307522,2705.8,2705.4,4.4734]
[1727476245321,4.85885522,2705.8,2705.4,0.7771]
[1727476245911,1.16307522,2705.6,2705.3,1.65481119]
[1727476246075,4.85913522,2705.6,2705.3,1.65481119]
[1727476249337,1.16307522,2705.6,2705.3,1.65481119]
[1727476250913,4.85914522,2705.6,2705.3,1.65481119]
[1727476251309,1.16307522,2705.6,2705.3,1.65481119]
[1727476253182,1.16307522,2705.5,2705.3,1.65481119]
[1727476255437,1.16307522,2705.4,2705.3,1.65481119]
[1727476256610,1.16307522,2705.5,2705.3,1.65481119]
[1727476261846,1.16307522,2705.4,2705.3,1.65481119]
[1727476262817,1.16307522,2705.5,2705.3,1.65481119]
[1727476263016,1.16307522,2705.5,2705.3,5.35124119]
[1727476263215,1.16307522,2705.6,2705.3,5.35124119]
[1727476263540,1.16307522,2705.6,2705.5,6.15968119]
[1727476265075,1.16307522,2705.7,2705.5,9.85585119]
[1727476265731,1.16307522,2705.7,2705.5,6.15968119]
[1727476265930,1.16307522,2705.6,2705.5,6.15968119]
[1727476266386,1.16307522,2705.6,2705.5,2.46351119]
[1727476267039,1.16307522,2705.6,2705.5,6.15968119]
[1727476267470,1.16307522,2705.7,2705.5,6.15968119]
[1727476267981,1.16307522,2705.6,2705.5,6.15968119]
[1727476268907,1.16307522,2705.7,2705.6,3.69603]
[1727476269059,1.16307522,2705.8,2705.6,5.35084119]
[1727476270890,1.16307522,2705.7,2705.6,5.35084119]
[1727476271111,1.16307522,2705.8,2705.6,5.35084119]
[1727476274810,1.16307522,2705.8,2705.6,1.65481119]
[1727476275109,1.16307522,2705.7,2705.5,4.50486]
[1727476276754,1.16307522,2705.7,2705.5,3.69616]
[1727476281419,1.16307522,2705.7,2705.5,7.39224]
[1727476282643,1.16307522,2705.7,2705.5,3.69608]
[1727476283032,1.16307522,2705.7,2705.5,7.39218]
[1727476283454,1.16307522,2705.7,2705.5,3.69608]
[1727476283662,1.16307522,2705.7,2705.5,7.39217]
[1727476285059,1.16307522,2705.7,2705.5,3.69608]
[1727476285275,1.16307522,2705.6,2705.5,3.69608]
[1727476285568,1.55048147,2705.8,2705.5,3.69608]
[1727476285569,1.16307522,2705.7,2705.5,7.39217]
[1727476287057,1.16307522,2705.7,2705.6,3.69603]
[1727476287573,1.16307522,2705.7,2705.4,5.35104119]
[1727476287770,1.16307522,2705.6,2705.4,5.35104119]
[1727476288085,1.16307522,2705.6,2705.5,3.69617]
[1727476288375,1.16483542,2705.6,2705.5,3.69617]
[1727476293217,1.16483542,2705.6,2705.4,1.65481119]
[1727476293508,1.16483542,2705.6,2705.3,5.35117119]
[1727476293674,1.91553542,2705.6,2705.3,5.35117119]
[1727476293874,1.16483542,2705.4,2705.1,6.14434119]
[1727476294113,1.16483542,2705.4,2705.2,3.69657]
[1727476294412,1.16483542,2705.3,2705.2,3.69657]
[1727476294609,1.16483542,2705.5,2705.2,3.69657]
[1727476294978,1.16483542,2705.5,2705.2,5.35138119]
[1727476296532,1.16483542,2705.5,2705.3,3.69641]
[1727476296911,1.16483542,2705.5,2705.3,7.39277]
[1727476297110,1.16483542,2705.5,2705.3,3.69636]
[1727476297827,1.16483542,2705.5,2705.2,1.65481119]
[1727476298127,1.16483542,2705.5,2705.2,5.35132119]
[1727476298494,1.16483542,2705.4,2705.2,5.35132119]
[1727476300236,1.16483542,2705.5,2705.2,5.35132119]
[1727476300793,1.16483542,2705.4,2705.2,9.04781119]
[1727476301532,1.16483542,2705.4,2705.2,5.35130119]
[1727476301692,1.16483542,2705.4,2705.2,9.04780119]
[1727476302127,1.16483542,2705.5,2705.2,9.04780119]
[1727476302333,1.16483542,2705.4,2705.2,9.04780119]
[1727476302708,1.16483542,2705.5,2705.2,9.04780119]
[1727476303805,1.16483542,2705.5,2704.8,3.0]
[1727476303806,1.16483542,2705.3,2705.0,3.69684]
[1727476304011,1.91553542,2705.2,2705.0,3.69678]
[1727476304262,1.91553542,2705.2,2704.9,5.35176119]
[1727476304414,1.16483542,2705.1,2704.9,5.35176119]
[1727476304745,1.91553542,2705.2,2704.9,1.65481119]
[1727476304952,1.91553542,2705.2,2704.9,5.35177119]
[1727476305618,1.91553542,2705.2,2704.9,1.65481119]
[1727476305823,1.16483542,2705.0,2704.8,3.697]
[1727476306014,1.16483542,2705.0,2704.8,7.39403]
[1727476306350,1.16483542,2705.0,2704.9,3.69699]
[1727476307140,1.16483542,2705.1,2704.9,3.69699]
[1727476308555,1.16483542,2705.1,2704.7,1.65481119]
[1727476308850,1.16483542,2705.1,2704.7,5.35195119]
[1727476309048,1.16483542,2705.1,2704.8,3.69712]
[1727476311436,1.16483542,2705.1,2704.8,3.69705]
[1727476311634,1.91553542,2705.2,2704.9,1.65481119]
[1727476315562,0.7507,2705.2,2704.9,1.65481119]
[1727476315941,1.91553542,2705.2,2704.9,1.65481119]
[1727476316374,0.7507,2705.2,2704.9,1.65481119]
[1727476317579,6.69806711,2705.2,2704.7,1.65481119]
[1727476317740,6.69806711,2705.2,2704.7,5.35207119]
[1727476319559,5.68197542,2705.1,2704.6,3.6973]
[1727476319760,4.86171542,2705.0,2704.5,5.35230119]
[1727476319947,0.8204,2704.9,2704.5,5.43310189]
[1727476320871,0.8204,2704.9,2704.5,5.43306189]
[1727476321054,0.8204,2704.9,2704.6,3.69738]
[1727476321252,0.8204,2704.9,2704.5,1.73561189]
[1727476321492,0.8204,2704.9,2704.5,3.6975]
[1727476321656,0.8204,2704.9,2704.5,3.7783007]
[1727476321860,1.98523542,2704.9,2704.6,3.69733]
[1727476322057,0.8204,2704.9,2704.7,5.35204119]
[1727476322376,0.8204,2704.9,2704.8,3.69713]
[1727476322948,0.8204,2704.9,2704.7,1.65481119]
[1727476323162,0.8204,2704.9,2704.7,5.35207119]
[1727476326663,0.8204,2704.9,2704.7,3.69726]
[1727476328141,0.8204,2704.9,2704.7,3.77802919]
[1727476335060,1.16483542,2705.1,2704.7,3.77795919]
[1727476335261,1.16483542,2705.1,2704.8,3.697]
[1727476335262,0.7796,2705.1,2704.8,3.697]
[1727476335589,1.16483542,2705.2,2704.9,3.6969]
[1727476335885,1.94443542,2705.3,2704.9,3.6969]
[1727476336090,1.16483542,2705.2,2704.9,3.6969]
[1727476336591,1.94443542,2705.3,2704.9,3.6969]
[1727476337687,1.16483542,2705.2,2704.9,3.6969]
[1727476337898,1.94443542,2705.3,2704.9,3.6969]
[1727476338095,1.94443542,2705.3,2704.9,4.4575]
[1727476338668,1.16483542,2705.2,2704.9,4.4575]
[1727476338882,1.16483542,2705.2,2704.9,0.7606]
[1727476343867,1.16483542,2705.2,2704.9,4.45752]
[1727476344595,1.16483542,2705.1,2704.9,4.45752]
[1727476344797,1.16483542,2705.2,2704.9,4.45752]
[1727476345305,1.16483542,2705.1,2704.9,4.45752]
[1727476346603,1.16483542,2705.1,2704.9,0.7606]
[1727476346754,1.16483542,2705.0,2704.6,4.5062]
[1727476346958,1.16483542,2705.0,2704.7,0.08067694]
[1727476347177,1.16483542,2704.9,2704.7,3.77793694]
[1727476347398,1.16483542,2704.9,2704.7,7.47512694]
[1727476347692,1.16483542,2704.9,2704.7,7.47505694]
[1727476348114,1.92823542,2704.9,2704.7,0.08067694]
[1727476348266,1.43636711,2704.8,2704.7,0.08067694]
[1727476348460,1.43636711,2704.8,2704.5,3.69745]
[1727476348695,1.16483542,2704.8,2704.7,0.06915166]
[1727476348889,1.55048147,2704.8,2704.6,0.06177397]
[1727476349074,1.1651835,2704.7,2704.5,3.69745]
[1727476349805,1.1651835,2704.7,2704.5,7.39491]
[1727476350212,1.1651835,2704.7,2704.5,3.69745]
[1727476351016,1.1651835,2704.7,2704.6,0.06177397]
[1727476351173,1.1651835,2704.7,2704.6,3.75917397]
[1727476351716,1.1651835,2704.7,2704.6,0.06177397]
[1727476352585,1.1651835,2704.7,2704.6,3.75917397]
[1727476353402,1.1651835,2704.8,2704.7,3.69726]
[1727476353604,1.1651835,2704.8,2704.7,3.75884641]
[1727476354169,1.55048147,2704.9,2704.7,3.75884641]
[1727476354503,1.1654439,2704.8,2704.7,3.75884641]
[1727476354708,1.1654513,2704.8,2704.7,3.75884641]
[1727476355006,1.16543796,2704.8,2704.7,3.75884641]
[1727476356295,1.16543796,2704.9,2704.8,3.69713]
[1727476356518,1.16543796,2705.0,2704.9,4.50579]
[1727476356715,1.16543796,2705.3,2705.2,0.8088]
[1727476356927,1.16543796,2705.4,2705.2,6.16019119]
[1727476357091,1.16513286,2705.4,2705.3,3.69644]
[1727476357616,1.16513286,2705.4,2705.3,3.76601516]
[1727476358611,1.55048147,2705.5,2705.3,3.76601516]
[1727476358612,1.16513286,2705.5,2705.3,3.76601516]
[1727476359635,2.31388147,2705.7,2705.3,3.76601516]
[1727476359636,1.16513286,2705.7,2705.4,5.35112119]
[1727476359790,1.16513286,2705.8,2705.6,3.69595]
[1727476360118,1.16513286,2705.8,2705.6,4.50473]
[1727476360327,1.16513286,2705.8,2705.7,3.6959]
[1727476360532,1.16513286,2705.9,2705.6,4.50473]
[1727476361026,1.16513286,2705.8,2705.6,4.50473]
[1727476361539,1.16513286,2705.9,2705.6,4.50473]
[1727476362117,1.16513286,2705.9,2705.7,3.69588]
[1727476362280,1.16513286,2705.9,2705.6,4.50473]
[1727476363125,1.16513286,2706.0,2705.6,4.50473]
[1727476364817,1.16513286,2706.0,2705.6,3.69593]
[1727476365730,4.86064286,2706.0,2705.4,6.15894119]
[1727476365885,4.86079286,2705.9,2705.4,3.69623]
[1727476366084,0.7651,2705.8,2705.4,3.69623]
[1727476366738,1.93023286,2705.8,2705.3,3.69642]
[1727476367101,0.7651,2705.8,2705.3,3.69642]
[1727476367640,0.7651,2705.8,2705.4,3.69626]
[1727476368440,1.93023286,2705.8,2705.4,3.69626]
[1727476369306,0.7651,2705.8,2705.4,3.69626]
[1727476372343,0.7651,2705.8,2705.5,3.69614]
[1727476372544,0.7651,2705.8,2705.4,3.69626]
[1727476373544,0.7651,2705.8,2705.4,7.39249]
[1727476374529,0.7651,2705.8,2705.4,3.69623]
[1727476374716,1.59141908,2705.8,2705.2,3.6965]
[1727476374922,6.45231194,2705.8,2705.3,3.69642]
[1727476375748,2.75655194,2705.8,2705.3,3.69642]
[1727476376919,0.7651,2705.6,2705.3,3.69642]
[1727476378328,0.7651,2705.6,2705.2,3.6965]
[1727476378524,0.7651,2705.6,2705.4,3.69628]
[1727476379035,0.7651,2705.6,2705.5,3.69617]
[1727476379251,1.55048147,2705.9,2705.5,3.69617]
[1727476379252,1.16513286,2705.9,2705.5,3.69617]
[1727476379455,1.16513286,2705.9,2705.6,3.69602]
[1727476379961,1.16513286,2705.9,2705.4,4.5041]
[1727476380164,1.88274729,2705.9,2705.4,4.5041]
[1727476380370,1.88274729,2705.9,2705.4,8.20032]
[1727476380869,1.88274729,2705.9,2705.4,4.5041]
[1727476381589,1.88274729,2705.9,2705.5,3.69606]
[1727476381736,1.16513286,2705.9,2705.5,3.69616]
[1727476381936,5.62574286,2706.0,2705.5,3.69611]
[1727476382638,1.16513286,2705.9,2705.5,3.69611]
[1727476383763,5.62574286,2706.0,2705.5,3.69611]
[1727476385877,5.62574286,2706.0,2705.4,4.5041]
[1727476386082,0.8278,2705.7,2705.3,3.69642]
[1727476392464,0.8278,2705.7,2705.2,7.39299]
[1727476392662,1.99293286,2705.7,2705.2,3.69649]
[1727476392864,0.8278,2705.7,2705.2,7.39299]
[1727476393055,5.68884286,2705.7,2705.2,3.69649]
[1727476393249,4.52393,2705.6,2705.0,6.69674]
[1727476393482,0.8278,2705.5,2705.1,3.69669]
[1727476393668,0.8278,2705.5,2705.1,3.7773385]
[1727476394067,4.52404,2705.5,2705.1,0.0806485]
[1727476394267,6.36742979,2705.5,2705.1,0.0806485]
[1727476394591,6.36742979,2705.5,2705.0,3.69685]
[1727476394894,6.36742979,2705.5,2705.1,0.0806485]
[1727476395082,0.79179113,2705.4,2705.1,0.0806485]
[1727476395281,0.79179113,2705.4,2704.9,9.04863119]
[1727476395467,6.36742979,2705.5,2705.1,0.0806485]
[1727476395864,5.20229693,2705.5,2705.1,0.0806485]
[1727476396162,6.36742979,2705.5,2705.1,0.0806485]
[1727476396902,1.99293286,2705.5,2705.2,3.69649]
[1727476398692,1.99293286,2705.5,2705.3,3.69632]
[1727476399196,1.99293286,2705.5,2705.2,3.69649]
[1727476399359,1.99293286,2705.5,2705.2,7.39298]
[1727476399556,1.16513286,2705.4,2705.2,7.39298]
[1727476399757,1.99293286,2705.5,2705.2,7.39298]
[1727476400093,1.99293286,2705.5,2705.2,3.69649]
[1727476401291,1.16513286,2705.4,2705.2,3.69649]
[1727476401795,1.16513286,2705.4,2705.2,7.393]
[1727476402193,1.16513286,2705.4,2705.2,3.69649]
[1727476402402,1.16513286,2705.4,2705.2,7.39299]
[1727476402566,1.16513286,2705.4,2705.2,3.69649]
[1727476403095,1.16513286,2705.5,2705.3,6.10445119]
[1727476403403,1.16513286,2705.5,2705.4,3.69631]
[1727476406294,1.16513286,2705.6,2705.4,3.69631]
[1727476409705,1.16513286,2705.5,2705.4,3.69631]
[1727476410384,1.16513286,2705.6,2705.4,3.69631]
[1727476411702,1.16513286,2705.6,2705.3,6.10436119]
[1727476411996,1.16513286,2705.6,2705.5,3.69617]
[1727476415804,1.16513286,2705.7,2705.5,3.69617]
[1727476416510,1.16513286,2705.6,2705.5,3.69617]
[1727476416676,1.16513286,2705.7,2705.5,3.69617]
[1727476417384,1.16513286,2705.6,2705.5,3.69617]
[1727476417618,1.16513286,2705.7,2705.5,3.69617]
[1727476426922,1.16513286,2705.7,2705.5,3.69608]
[1727476427128,1.16513286,2705.7,2705.5,7.39218]
[1727476427693,1.16513286,2705.8,2705.5,7.39218]
[1727476427911,1.16513286,2705.8,2705.5,3.69608]
[1727476428823,1.16513286,2705.7,2705.5,3.69608]
[1727476429432,1.16513286,2705.8,2705.5,7.39218]
[1727476429588,1.16513286,2705.8,2705.5,3.69608]
[1727476429791,1.16513286,2705.8,2705.5,7.39217]
[1727476430505,1.16513286,2705.8,2705.5,0.8247]
[1727476430753,1.16513286,2705.9,2705.8,4.52046]
[1727476430903,1.16513286,2706.4,2706.1,3.69522]
[1727476431103,0.775,2706.6,2706.3,6.17459119]
[1727476431104,1.16513286,2706.6,2706.3,6.17459119]
[1727476431336,1.94099155,2706.9,2706.7,3.69453]
[1727476431337,1.16513286,2706.9,2706.7,3.69453]
[1727476431553,1.16513286,2706.9,2706.8,3.69439]
[1727476431905,1.16513286,2707.0,2706.8,3.69439]
[1727476432214,2.32548147,2707.1,2706.9,5.34905119]
[1727476432215,1.94013286,2707.1,2706.9,5.34905119]
[1727476432524,1.94013286,2707.1,2706.9,1.65481119]
[1727476433106,0.775,2707.1,2706.9,5.34902119]
[1727476433499,1.16513286,2707.2,2706.9,5.34902119]
[1727476433698,1.11513286,2707.2,2706.9,5.34902119]
[1727476433924,2.32548147,2707.4,2706.9,5.34902119]
[1727476434171,0.775,2707.4,2707.0,3.69402]
[1727476435327,1.55048147,2707.5,2707.3,1.65481119]
[1727476435644,0.775,2707.6,2707.3,1.65481119]
[1727476436148,0.775,2707.6,2707.0,4.51872]
[1727476436301,3.69354,2707.5,2706.8,3.69434]
[1727476436649,0.775,2707.4,2706.8,3.69434]
[1727476436803,0.446854,2707.3,2706.8,3.69434]
[1727476436999,4.140564,2707.3,2706.7,3.69452]
[1727476437224,0.775,2707.2,2706.5,3.8247]
[1727476437538,1.2665564,2707.2,2706.6,5.34936119]
[1727476438266,3.69349,2707.5,2707.1,1.65481119]
[1727476438267,0.775,2707.5,2707.1,1.65481119]
[1727476438553,0.775,2707.5,2706.9,9.04311119]
[1727476438726,4.51008,2707.4,2706.9,1.65481119]
[1727476438911,4.51008,2707.4,2706.8,3.69434]
[1727476439107,4.51008,2707.4,2706.7,5.34921119]
[1727476439108,0.775,2707.3,2706.7,5.34921119]
[1727476439341,1.226008,2707.3,2706.8,3.69428]
[1727476439908,0.775,2707.3,2706.8,3.69428]
[1727476440547,0.775,2707.3,2706.7,5.34921119]
[1727476440745,0.775,2707.3,2706.9,3.69423]
[1727476441524,0.775,2707.3,2706.8,3.69436]
[1727476441711,0.775,2707.3,2707.0,5.34888119]
[1727476441915,0.775,2707.3,2707.0,3.69407]
[1727476442452,0.775,2707.3,2706.8,3.69436]
[1727476442662,0.775,2707.3,2706.8,3.69427]
[1727476442949,0.775,2707.3,2706.9,3.69422]
[1727476445056,8.1915,2707.6,2707.3,3.69369]
[1727476445435,8.1915,2707.6,2707.1,3.69396]
[1727476445753,0.81915,2707.5,2707.1,3.69396]
[1727476446134,0.81915,2707.5,2707.1,7.38783]
[1727476446467,8.1915,2707.6,2707.3,3.69361]
[1727476446823,8.1915,2707.6,2707.5,3.69344]
[1727476447027,0.8015,2707.6,2707.5,3.69344]
[1727476447225,0.8015,2708.0,2707.3,5.34842119]